[Event "HUN-ch Rapid 2019"]
[Site "Ajka"]
[Date "2019.07.20"]
[Round "6.7"]
[White "Popovics, Adam"]
[Black "Aczel, Gergely"]
[Result "0-1"]
[ECO "E32"]
[WhiteElo "2365"]
[BlackElo "2540"]
[Annotator "ChessBase"]
[PlyCount "90"]
[EventDate "2019.07.18"]
[EventType "swiss"]
[EventCountry "HUN"]
[SourceTitle "playchess.com"]
[Source "ChessBase"]
[SourceQuality "1"]
[TimeControl "1200+5"]

1. d4 {[%emt 0:00:03]} Nf6 {[%emt 0:00:01]} 2. c4 {[%emt 0:00:03]} e6 {[%emt 0:00:01]} 3. Nc3 {[%emt 0:00:05]} Bb4 {[%emt 0:00:02]} 4. Qc2 {[%emt 0:00:03]} O-O {[%emt 0:00:02]} 5. Nf3 {[%emt 0:00:01]} c5 {[%emt 0:00:12]} 6. a3 {[%emt 0:00:31]} Bxc3+ {[%emt 0:00:08]} 7. Qxc3 {[%emt 0:00:01]} cxd4 {[%emt 0:00:17]} 8. Nxd4 {[%emt 0:00:13]} b6 {[%emt 0:00:30]} 9. Bg5 {[%emt 0:00:42]} Bb7 {[%emt 0:00:13]} 10. f3 {[%emt 0:00:13]} h6 {[%emt 0:00:17]} 11. Bh4 {[%emt 0:00:09]} d5 {[%emt 0:00:53]} 12. cxd5 {[%emt 0:00:35]} Nxd5 {[%emt 0:01:20]} 13. Bxd8 {[%emt 0:00:01]} Nxc3 {[%emt 0:00:01]} 14. Bh4 {[%emt 0:00:03]} Nd5 {[%emt 0:02:24]} 15. e4 {[%emt 0:01:59]} Ne3 {[%emt 0:00:15]} 16. Bf2 {[%emt 0:00:01]} Nxf1 {[%emt 0:00:02]} 17. Kxf1 {[%emt 0:00:24]} Ba6+ {[%emt 0:00:23]} 18. Kg1 {[%emt 0:00:05]} Rc8 {[%emt 0:00:56]} 19. h3 {[%emt 0:00:52]} e5 {[%emt 0:00:08]} 20. Nf5 {[%emt 0:00:11]} Rc2 {[%emt 0:00:03]} 21. Ne7+ {[%emt 0:00:25]} Kf8 {[%emt 0:00:41]} 22. Nd5 {[%emt 0:00:01]} Bb7 {[%emt 0:00:09]} 23. Rd1 {[%emt 0:00:17]} Bxd5 {[%emt 0:00:56]} 24. Rxd5 {[%emt 0:00:02]} Nc6 {[%emt 0:00:01]} 25. b4 {[%emt 0:00:09]} Rd8 {[%emt 0:00:19]} 26. Bg3 {[%emt 0:00:09]} f6 {[%emt 0:02:06]} 27. Rxd8+ {[%emt 0:00:05]} Nxd8 {[%emt 0:00:01]} 28. Kh2 {[%emt 0:00:02]} Ne6 {[%emt 0:00:23]} 29. Rd1 {[%emt 0:00:13]} Ke7 {[%emt 0:00:17]} 30. Kg1 {[%emt 0:00:24]} Rc3 {[%emt 0:00:27]} 31. Ra1 {[%emt 0:00:12]} Rb3 {[%emt 0:01:38]} 32. Kf1 {[%emt 0:00:46]} a6 {[%emt 0:00:19]} 33. Be1 {[%emt 0:00:43]} Nd4 {[%emt 0:00:37]} 34. Bf2 {[%emt 0:00:23]} b5 {[%emt 0:00:12]} 35. Ra2 {[%emt 0:01:29]} g5 {[%emt 0:00:18]} 36. Rd2 {[%emt 0:00:50]} Rxa3 {[%emt 0:00:05]} 37. Bxd4 {[%emt 0:00:02]} exd4 {[%emt 0:00:01]} 38. Rxd4 {[%emt 0:00:01]} Ra4 {[%emt 0:00:11]} 39. h4 {[%emt 0:00:47]} a5 {[%emt 0:00:40]} 40. e5 {[%emt 0:00:14]} fxe5 {[%emt 0:00:47]} 41. Rd5 {[%emt 0:00:16]} Rxb4 {[%emt 0:00:08]} 42. hxg5 {[%emt 0:00:05]} hxg5 {[%emt 0:00:37]} 43. Rxe5+ {[%emt 0:00:02]} Kf6 {[%emt 0:00:01]} 44. Rc5 {[%emt 0:00:11]} a4 {[%emt 0:00:08]} 45. Kf2 {[%emt 0:00:06]} a3 {[%emt 0:00:07]} 0-1

[Event "HUN-ch Rapid 2019"]
[Site "Ajka"]
[Date "2019.07.20"]
[Round "6.8"]
[White "Horvath, Adam"]
[Black "Videki, Sandor"]
[Result "1-0"]
[ECO "B61"]
[WhiteElo "2517"]
[BlackElo "2401"]
[Annotator "ChessBase"]
[PlyCount "65"]
[EventDate "2019.07.18"]
[EventType "swiss"]
[EventCountry "HUN"]
[SourceTitle "playchess.com"]
[Source "ChessBase"]
[SourceQuality "1"]
[TimeControl "1200+5"]

1. e4 {[%emt 0:00:03]} c5 {[%emt 0:00:09]} 2. Nf3 {[%emt 0:00:01]} d6 {[%emt 0:00:02]} 3. d4 {[%emt 0:00:01]} cxd4 {[%emt 0:00:01]} 4. Nxd4 {[%emt 0:00:02]} Nf6 {[%emt 0:00:01]} 5. Nc3 {[%emt 0:00:01]} Nc6 {[%emt 0:00:01]} 6. Bg5 {[%emt 0:00:19]} Bd7 {[%emt 0:00:04]} 7. Qd2 {[%emt 0:00:04]} Nxd4 {[%emt 0:00:05]} 8. Qxd4 {[%emt 0:00:02]} Qa5 {[%emt 0:00:01]} 9. Bd2 {[%emt 0:00:12]} Rc8 {[%emt 0:00:23]} 10. Nb5 {[%emt 0:01:47]} Qb6 {[%emt 0:00:02]} 11. Qxb6 {[%emt 0:00:24]} axb6 {[%emt 0:00:01]} 12. Nc3 {[%emt 0:00:18]} Bc6 {[%emt 0:00:16]} 13. f3 {[%emt 0:00:51]} e6 {[%emt 0:04:44]} 14. Be3 {[%emt 0:01:58]} d5 {[%emt 0:00:19]} 15. exd5 {[%emt 0:00:22]} Nxd5 {[%emt 0:00:02]} 16. Nxd5 {[%emt 0:00:01]} exd5 {[%emt 0:04:25]} 17. Bxb6 {[%emt 0:00:31]} Bd6 {[%emt 0:00:15]} 18. Bd4 {[%emt 0:00:48]} O-O {[%emt 0:00:06]} 19. O-O-O {[%emt 0:00:34]} b5 {[%emt 0:01:22]} 20. c3 {[%emt 0:02:55]} b4 {[%emt 0:01:15]} 21. Kb1 {[%emt 0:00:02]} Ba4 {[%emt 0:00:10]} 22. b3 {[%emt 0:00:07]} bxc3 {[%emt 0:00:22]} 23. Rc1 {[%emt 0:00:01]} Bd7 {[%emt 0:01:28]} 24. Rxc3 {[%emt 0:00:07]} Bf5+ {[%emt 0:00:16]} 25. Ka1 {[%emt 0:04:14]} Rxc3 {[%emt 0:03:37]} 26. Bxc3 {[%emt 0:00:01]} Rc8 {[%emt 0:00:01]} 27. Bb2 {[%emt 0:00:35]} d4 {[%emt 0:00:06]} 28. Bc4 {[%emt 0:00:17]} d3 {[%emt 0:00:09]} 29. Rd1 {[%emt 0:01:20]} Re8 {[%emt 0:00:11]} 30. a4 {[%emt 0:00:17]} d2 {[%emt 0:00:41]} 31. Bc3 {[%emt 0:00:47]} Bf4 {[%emt 0:00:44]} 32. Kb2 {[%emt 0:00:16]} Rd8 {[%emt 0:01:12]} 33. a5 {[%emt 0:00:03]} 1-0

[Event "HUN-ch Rapid 2019"]
[Site "Ajka"]
[Date "2019.07.20"]
[Round "6.11"]
[White "Prohaszka, Peter"]
[Black "Kiss, Pal"]
[Result "1-0"]
[ECO "D02"]
[WhiteElo "2598"]
[BlackElo "2278"]
[Annotator "ChessBase"]
[PlyCount "73"]
[EventDate "2019.07.18"]
[EventType "swiss"]
[EventCountry "HUN"]
[SourceTitle "playchess.com"]
[Source "ChessBase"]
[SourceQuality "1"]
[TimeControl "1200+5"]

1. d4 {[%emt 0:00:12]} d5 {[%emt 0:00:02]} 2. Nf3 {[%emt 0:00:01]} Nf6 {[%emt 0:00:02]} 3. g3 {[%emt 0:00:30]} c6 {[%emt 0:00:23]} 4. Bg2 {[%emt 0:00:05]} Bg4 {[%emt 0:00:10]} 5. c4 {[%emt 0:00:06]} e6 {[%emt 0:00:05]} 6. Qb3 {[%emt 0:00:25]} Qb6 {[%emt 0:00:12]} 7. O-O {[%emt 0:00:07]} Nbd7 {[%emt 0:00:07]} 8. Nc3 {[%emt 0:00:10]} Be7 {[%emt 0:00:08]} 9. c5 {[%emt 0:00:34]} Qa6 {[%emt 0:00:26]} 10. Re1 {[%emt 0:00:02]} b6 {[%emt 0:00:01]} 11. cxb6 {[%emt 0:00:24]} axb6 {[%emt 0:00:02]} 12. e4 {[%emt 0:01:03]} O-O {[%emt 0:01:27]} 13. Bf4 {[%emt 0:01:20]} dxe4 {[%emt 0:02:28]} 14. Nxe4 {[%emt 0:01:50]} Nd5 {[%emt 0:02:10]} 15. Bd6 {[%emt 0:02:52]} Bxd6 {[%emt 0:01:14]} 16. Nxd6 {[%emt 0:00:01]} Qa4 {[%emt 0:01:05]} 17. Qxa4 {[%emt 0:01:15]} Rxa4 {[%emt 0:00:02]} 18. Ne5 {[%emt 0:00:03]} Nxe5 {[%emt 0:00:11]} 19. dxe5 {[%emt 0:00:03]} Rfa8 {[%emt 0:03:03]} 20. a3 {[%emt 0:00:03]} b5 {[%emt 0:01:14]} 21. Rec1 {[%emt 0:01:49]} R4a6 {[%emt 0:01:41]} 22. h3 {[%emt 0:00:45]} Be2 {[%emt 0:00:39]} 23. Rc2 {[%emt 0:00:10]} Bd3 {[%emt 0:00:12]} 24. Rd2 {[%emt 0:00:04]} Bg6 {[%emt 0:00:46]} 25. Rc1 {[%emt 0:00:01]} h5 {[%emt 0:00:29]} 26. Rd4 {[%emt 0:00:34]} Rb8 {[%emt 0:00:32]} 27. Bf3 {[%emt 0:01:34]} b4 {[%emt 0:00:29]} 28. Bxd5 {[%emt 0:03:48]} bxa3 {[%emt 0:00:35]} 29. Be4 {[%emt 0:00:22]} axb2 {[%emt 0:00:13]} 30. Rb1 {[%emt 0:00:03]} c5 {[%emt 0:00:23]} 31. Rd2 {[%emt 0:00:11]} Ra1 {[%emt 0:00:49]} 32. Bxg6 {[%emt 0:00:25]} fxg6 {[%emt 0:00:05]} 33. Rdd1 {[%emt 0:00:02]} Ra4 {[%emt 0:00:09]} 34. Kf1 {[%emt 0:00:31]} c4 {[%emt 0:00:50]} 35. Ne4 {[%emt 0:00:01]} Ra3 {[%emt 0:00:15]} 36. Ke2 {[%emt 0:00:15]} c3 {[%emt 0:00:08]} 37. Kd3 {[%emt 0:00:18]} 1-0

[Event "HUN-ch Rapid 2019"]
[Site "Ajka"]
[Date "2019.07.20"]
[Round "6.12"]
[White "Nagy, Bence"]
[Black "Dankhazi, Andras"]
[Result "1-0"]
[ECO "C42"]
[WhiteElo "2352"]
[BlackElo "2277"]
[Annotator "NA"]
[PlyCount "91"]
[EventDate "2019.07.18"]
[EventType "swiss"]
[EventCountry "HUN"]
[SourceTitle "playchess.com"]
[Source "ChessBase"]
[SourceQuality "1"]
[TimeControl "1200+5"]

1. e4 {[%emt 0:00:01]} e5 {[%emt 0:00:02]} 2. Nf3 {[%emt 0:00:02]} Nf6 {[%emt 0:00:02]} 3. Nxe5 {[%emt 0:00:08]} d6 {[%emt 0:00:01]} 4. Nf3 {[%emt 0:00:04]} Nxe4 {[%emt 0:00:02]} 5. d4 {[%emt 0:00:04]} d5 {[%emt 0:00:01]} 6. Bd3 {[%emt 0:00:06]} Bd6 {[%emt 0:00:01]} 7. O-O {[%emt 0:00:15]} O-O {[%emt 0:00:02]} 8. c4 {[%emt 0:00:02]} c6 {[%emt 0:00:02]} 9. Nc3 {[%emt 0:00:06]} Nxc3 {[%emt 0:00:01]} 10. bxc3 {[%emt 0:00:03]} dxc4 {[%emt 0:00:01]} 11. Bxc4 {[%emt 0:00:03]} Bf5 {[%emt 0:00:01]} 12. Bg5 {[%emt 0:01:08]} Qa5 {[%emt 0:00:09]} 13. Bd3 {[%emt 0:01:14]} Bxd3 {[%emt 0:03:20]} 14. Qxd3 {[%emt 0:00:02]} Nd7 {[%emt 0:00:00]} 15. Bh4 {[%emt 0:01:49]} Rfe8 {[%emt 0:06:16]} 16. Bg3 {[%emt 0:00:33]} Qc7 {[%emt 0:00:34]} 17. Rab1 {[%emt 0:01:29]} b5 {[%emt 0:00:09]} 18. c4 {[%emt 0:01:26]} bxc4 {[%emt 0:00:27]} 19. Qxc4 {[%emt 0:00:08]} Nb6 {[%emt 0:02:33]} 20. Qc2 {[%emt 0:00:02]} Bxg3 {[%emt 0:00:16]} 21. hxg3 {[%emt 0:00:03]} f6 {[%emt 0:01:07]} 22. Rb5 {[%emt 0:00:25]} Rac8 {[%emt 0:00:37]} 23. Rc5 {[%emt 0:00:56]} Re6 {[%emt 0:01:14]} 24. Rc1 {[%emt 0:00:21]} Rd6 {[%emt 0:00:02]} 25. Qe4 {[%emt 0:02:37]} Qd7 {[%emt 0:00:46]} 26. Qe2 {[%emt 0:00:38]} Qb7 {[%emt 0:01:37]} 27. a4 {[%emt 0:00:55]} Nd5 {[%emt 0:01:14]} 28. Nd2 {[%emt 0:00:41]} Qd7 {[%emt 0:00:15]} 29. Nc4 {[%emt 0:00:28]} Re6 {[%emt 0:00:01]} 30. Qa2 {[%emt 0:00:35]} Kf8 {[%emt 0:00:15]} 31. Na5 {[%emt 0:00:11]} Ne7 {[%emt 0:00:01]} 32. Qc4 {[%emt 0:00:13]} Rd6 {[%emt 0:00:06]} 33. Nb3 {[%emt 0:01:38]} Rd8 {[%emt 0:00:29]} 34. Ra5 {[%emt 0:00:09]} Nc8 {[%emt 0:00:51]} 35. Ra6 {[%emt 0:00:28]} Ne7 {[%emt 0:00:12]} 36. Nc5 {[%emt 0:00:17]} Qf5 {[%emt 0:00:01]} 37. Rxa7 {[%emt 0:00:09]} Qd5 {[%emt 0:00:03]} 38. Qxd5 {[%emt 0:01:29]} Nxd5 {[%emt 0:00:04]} 39. Rb1 {[%emt 0:00:33]} Re8 {[%emt 0:00:07]} 40. Rbb7 {[%emt 0:00:17]} Re7 {[%emt 0:00:01]} 41. a5 {[%emt 0:00:12]} Rxb7 {[%emt 0:00:10]} 42. Rxb7 {[%emt 0:00:05]} Nc3 {[%emt 0:00:03]} 43. a6 {[%emt 0:00:08]} Nb5 {[%emt 0:00:02]} 44. Rxb5 {[%emt 0:00:10]} cxb5 {[%emt 0:00:00]} 45. a7 {[%emt 0:00:01]} Rd8 {[%emt 0:00:01]} 46. Ne6+ {[%emt 0:00:02]} 1-0

[Event "HUN-ch Rapid 2019"]
[Site "Ajka"]
[Date "2019.07.20"]
[Round "6.13"]
[White "Hoang, Thanh Trang"]
[Black "Nemeth, Zoltan"]
[Result "1-0"]
[ECO "A47"]
[WhiteElo "2414"]
[BlackElo "2275"]
[Annotator "NA"]
[PlyCount "87"]
[EventDate "2019.07.18"]
[EventType "swiss"]
[EventCountry "HUN"]
[SourceTitle "playchess.com"]
[Source "ChessBase"]
[SourceQuality "1"]
[TimeControl "1200+5"]

1. d4 {[%emt 0:00:02]} Nf6 {[%emt 0:00:01]} 2. Nf3 {[%emt 0:00:09]} b6 {[%emt 0:00:31]} 3. e3 {[%emt 0:00:46]} Bb7 {[%emt 0:00:02]} 4. Bd3 {[%emt 0:00:04]} d6 {[%emt 0:00:17]} 5. O-O {[%emt 0:00:22]} Nbd7 {[%emt 0:00:23]} 6. Re1 {[%emt 0:01:33]} e5 {[%emt 0:00:16]} 7. e4 {[%emt 0:00:06]} Be7 {[%emt 0:00:25]} 8. d5 {[%emt 0:00:39]} O-O {[%emt 0:00:10]} 9. c4 {[%emt 0:00:03]} a5 {[%emt 0:00:08]} 10. Nc3 {[%emt 0:00:11]} h6 {[%emt 0:00:52]} 11. Ne2 {[%emt 0:03:41]} Nh7 {[%emt 0:00:03]} 12. Ng3 {[%emt 0:00:11]} Bg5 {[%emt 0:00:26]} 13. Nxg5 {[%emt 0:00:20]} hxg5 {[%emt 0:00:47]} 14. Be2 {[%emt 0:00:13]} g6 {[%emt 0:00:21]} 15. Qc2 {[%emt 0:01:00]} Kg7 {[%emt 0:00:21]} 16. Be3 {[%emt 0:00:15]} Rh8 {[%emt 0:02:54]} 17. b3 {[%emt 0:00:08]} Qe7 {[%emt 0:00:01]} 18. a3 {[%emt 0:00:18]} Raf8 {[%emt 0:02:40]} 19. b4 {[%emt 0:00:17]} a4 {[%emt 0:00:00]} 20. Rac1 {[%emt 0:01:40]} Bc8 {[%emt 0:00:28]} 21. c5 {[%emt 0:00:27]} bxc5 {[%emt 0:00:54]} 22. bxc5 {[%emt 0:00:02]} Ndf6 {[%emt 0:00:02]} 23. Qxa4 {[%emt 0:00:35]} g4 {[%emt 0:00:19]} 24. Qa7 {[%emt 0:00:32]} Bd7 {[%emt 0:00:35]} 25. Qxc7 {[%emt 0:00:21]} Ne8 {[%emt 0:01:06]} 26. Qb7 {[%emt 0:01:17]} Qh4 {[%emt 0:00:11]} 27. Nf1 {[%emt 0:00:02]} g3 {[%emt 0:00:27]} 28. fxg3 {[%emt 0:00:13]} Qxe4 {[%emt 0:00:02]} 29. Qxd7 {[%emt 0:00:33]} Nhf6 {[%emt 0:00:36]} 30. Qc6 {[%emt 0:00:29]} Qf5 {[%emt 0:01:08]} 31. cxd6 {[%emt 0:00:11]} Ng4 {[%emt 0:01:32]} 32. Bxg4 {[%emt 0:00:28]} Qxg4 {[%emt 0:00:02]} 33. d7 {[%emt 0:00:07]} Nf6 {[%emt 0:00:02]} 34. Bc5 {[%emt 0:00:15]} Ra8 {[%emt 0:00:29]} 35. Rxe5 {[%emt 0:01:09]} Nxd7 {[%emt 0:00:06]} 36. Re7 {[%emt 0:01:45]} Nxc5 {[%emt 0:01:15]} 37. Qxc5 {[%emt 0:00:02]} Rac8 {[%emt 0:00:01]} 38. Qf2 {[%emt 0:00:40]} Rhf8 {[%emt 0:01:32]} 39. Rxc8 {[%emt 0:00:02]} Qxc8 {[%emt 0:00:01]} 40. d6 {[%emt 0:00:01]} Qc4 {[%emt 0:00:32]} 41. h4 {[%emt 0:00:28]} Qd5 {[%emt 0:00:11]} 42. Qb2+ {[%emt 0:00:10]} Kg8 {[%emt 0:00:01]} 43. Qf6 {[%emt 0:00:22]} Rd8 {[%emt 0:00:20]} 44. Rxf7 {[%emt 0:00:17]} 1-0

[Event "HUN-ch Rapid 2019"]
[Site "Ajka"]
[Date "2019.07.20"]
[Round "6.14"]
[White "Bodi, Tibor"]
[Black "Varga, Peter"]
[Result "1/2-1/2"]
[ECO "A06"]
[WhiteElo "2244"]
[BlackElo "2367"]
[Annotator "NA"]
[PlyCount "56"]
[EventDate "2019.07.18"]
[EventType "swiss"]
[EventCountry "HUN"]
[SourceTitle "playchess.com"]
[Source "ChessBase"]
[SourceQuality "1"]
[TimeControl "1200+5"]

1. Nf3 {[%emt 0:00:03]} d5 {[%emt 0:00:01]} 2. b3 {[%emt 0:00:02]} c6 {[%emt 0:00:03]} 3. Bb2 {[%emt 0:00:01]} Bg4 {[%emt 0:00:03]} 4. e3 {[%emt 0:00:02]} Nd7 {[%emt 0:00:01]} 5. d4 {[%emt 0:00:05]} e6 {[%emt 0:00:10]} 6. Be2 {[%emt 0:00:01]} Ngf6 {[%emt 0:00:03]} 7. O-O {[%emt 0:00:11]} Be7 {[%emt 0:00:21]} 8. Nbd2 {[%emt 0:00:05]} O-O {[%emt 0:00:02]} 9. Ne5 {[%emt 0:00:17]} Bxe2 {[%emt 0:00:08]} 10. Qxe2 {[%emt 0:00:02]} Nxe5 {[%emt 0:00:23]} 11. dxe5 {[%emt 0:00:02]} Nd7 {[%emt 0:00:01]} 12. c4 {[%emt 0:01:03]} f6 {[%emt 0:00:41]} 13. e4 {[%emt 0:04:34]} Nxe5 {[%emt 0:01:22]} 14. exd5 {[%emt 0:00:21]} exd5 {[%emt 0:00:02]} 15. Bxe5 {[%emt 0:00:20]} fxe5 {[%emt 0:00:02]} 16. Qxe5 {[%emt 0:00:04]} Bf6 {[%emt 0:00:44]} 17. Qe6+ {[%emt 0:00:01]} Rf7 {[%emt 0:00:35]} 18. Rad1 {[%emt 0:00:10]} Qd7 {[%emt 0:05:49]} 19. cxd5 {[%emt 0:00:12]} cxd5 {[%emt 0:00:01]} 20. Qxd7 {[%emt 0:00:41]} Rxd7 {[%emt 0:00:02]} 21. Ne4 {[%emt 0:00:22]} Rc8 {[%emt 0:01:41]} 22. Rd2 {[%emt 0:00:44]} Kf7 {[%emt 0:01:06]} 23. g3 {[%emt 0:00:57]} Ke6 {[%emt 0:01:26]} 24. Re1 {[%emt 0:00:47]} dxe4 {[%emt 0:01:15]} 25. Rxe4+ {[%emt 0:00:02]} Kf5 {[%emt 0:00:01]} 26. Rf4+ {[%emt 0:00:02]} Ke6 {[%emt 0:00:01]} 27. Re4+ {[%emt 0:00:02]} Kf5 {[%emt 0:00:01]} 28. Rf4+ {[%emt 0:00:01]} Ke5 1/2-1/2

[Event "HUN-ch Rapid 2019"]
[Site "Ajka"]
[Date "2019.07.20"]
[Round "6.15"]
[White "Hardicsay, Peter"]
[Black "Csonka, Balazs"]
[Result "1/2-1/2"]
[ECO "A14"]
[WhiteElo "2185"]
[BlackElo "2472"]
[Annotator "ChessBase"]
[PlyCount "44"]
[EventDate "2019.07.18"]
[EventType "swiss"]
[EventCountry "HUN"]
[SourceTitle "playchess.com"]
[Source "ChessBase"]
[SourceQuality "1"]
[TimeControl "1200+5"]

1. Nf3 {[%emt 0:00:01]} Nf6 {[%emt 0:00:03]} 2. c4 {[%emt 0:00:03]} e6 {[%emt 0:00:15]} 3. g3 {[%emt 0:00:15]} d5 {[%emt 0:00:43]} 4. Bg2 {[%emt 0:00:06]} Be7 {[%emt 0:00:08]} 5. O-O {[%emt 0:00:06]} O-O {[%emt 0:00:03]} 6. d4 {[%emt 0:00:55]} dxc4 {[%emt 0:00:32]} 7. Ne5 {[%emt 0:00:58]} Nc6 {[%emt 0:00:33]} 8. Nxc6 {[%emt 0:01:13]} bxc6 {[%emt 0:00:03]} 9. Bxc6 {[%emt 0:00:01]} Rb8 {[%emt 0:00:02]} 10. Nc3 {[%emt 0:00:12]} Bb7 {[%emt 0:00:24]} 11. Bxb7 {[%emt 0:02:48]} Rxb7 {[%emt 0:00:02]} 12. e4 {[%emt 0:00:16]} c5 {[%emt 0:00:21]} 13. d5 {[%emt 0:01:38]} Rd7 {[%emt 0:02:25]} 14. Qe2 {[%emt 0:00:57]} exd5 {[%emt 0:00:02]} 15. exd5 {[%emt 0:00:02]} Nxd5 {[%emt 0:00:03]} 16. Nxd5 {[%emt 0:00:25]} Rxd5 {[%emt 0:00:02]} 17. Qxc4 {[%emt 0:00:01]} Bf6 {[%emt 0:00:08]} 18. Rb1 {[%emt 0:00:51]} Bd4 {[%emt 0:00:56]} 19. b4 {[%emt 0:00:39]} cxb4 {[%emt 0:00:53]} 20. Rxb4 {[%emt 0:00:09]} Bb6 {[%emt 0:00:51]} 21. Rb3 {[%emt 0:03:02]} Rf5 {[%emt 0:01:49]} 22. Be3 {[%emt 0:00:19]} Bxe3 {[%emt 0:01:10]} 1/2-1/2

[Event "HUN-ch Rapid 2019"]
[Site "Ajka"]
[Date "2019.07.20"]
[Round "6.16"]
[White "Egresi, Mate"]
[Black "Szalanczi, Emil"]
[Result "1-0"]
[ECO "D90"]
[WhiteElo "2341"]
[BlackElo "2159"]
[Annotator "NA"]
[PlyCount "133"]
[EventDate "2019.07.18"]
[EventType "swiss"]
[EventCountry "HUN"]
[SourceTitle "playchess.com"]
[Source "ChessBase"]
[SourceQuality "1"]
[TimeControl "1200+5"]

1. d4 {[%emt 0:00:02]} Nf6 {[%emt 0:00:01]} 2. c4 {[%emt 0:00:01]} g6 {[%emt 0:00:02]} 3. Nc3 {[%emt 0:00:01]} d5 {[%emt 0:00:00]} 4. Nf3 {[%emt 0:00:02]} Bg7 {[%emt 0:00:02]} 5. h4 {[%emt 0:00:01]} h5 {[%emt 0:00:13]} 6. Bg5 {[%emt 0:00:02]} c5 {[%emt 0:00:47]} 7. dxc5 {[%emt 0:00:03]} Qa5 {[%emt 0:00:23]} 8. cxd5 {[%emt 0:00:04]} O-O {[%emt 0:00:45]} 9. Rc1 {[%emt 0:03:41]} Nbd7 {[%emt 0:01:22]} 10. Qa4 {[%emt 0:02:38]} Qxc5 {[%emt 0:01:12]} 11. e4 {[%emt 0:02:06]} Ng4 {[%emt 0:01:47]} 12. Nd1 {[%emt 0:00:01]} Qd6 {[%emt 0:01:52]} 13. Qa3 {[%emt 0:02:02]} Ndf6 {[%emt 0:00:53]} 14. Bd3 {[%emt 0:01:14]} Bd7 {[%emt 0:01:32]} 15. Qxd6 {[%emt 0:00:40]} exd6 {[%emt 0:00:01]} 16. O-O {[%emt 0:01:48]} Rfc8 {[%emt 0:00:52]} 17. Ne3 {[%emt 0:00:36]} b5 {[%emt 0:00:26]} 18. Nc2 {[%emt 0:00:48]} Rc5 {[%emt 0:00:35]} 19. Ncd4 {[%emt 0:00:23]} Rac8 {[%emt 0:00:31]} 20. b4 {[%emt 0:01:16]} Rc3 {[%emt 0:01:04]} 21. Rxc3 {[%emt 0:00:31]} Rxc3 {[%emt 0:00:01]} 22. Bxb5 {[%emt 0:00:03]} Ra3 {[%emt 0:00:39]} 23. Bxd7 {[%emt 0:00:39]} Nxd7 {[%emt 0:00:01]} 24. Nb5 {[%emt 0:00:02]} Rxa2 {[%emt 0:00:32]} 25. Nxd6 {[%emt 0:00:23]} Bf8 {[%emt 0:00:15]} 26. Bf4 {[%emt 0:00:32]} f6 {[%emt 0:02:14]} 27. Bg3 {[%emt 0:00:03]} Nde5 {[%emt 0:00:29]} 28. Nxe5 {[%emt 0:00:12]} fxe5 {[%emt 0:00:09]} 29. Nc4 {[%emt 0:00:03]} Bxb4 {[%emt 0:00:09]} 30. Nxe5 {[%emt 0:00:05]} Nf6 {[%emt 0:00:23]} 31. Nd3 {[%emt 0:01:07]} Bc3 {[%emt 0:00:46]} 32. d6 {[%emt 0:00:25]} Kf7 {[%emt 0:00:56]} 33. e5 {[%emt 0:00:21]} Nd7 {[%emt 0:00:40]} 34. Rc1 {[%emt 0:00:07]} Bd4 {[%emt 0:00:10]} 35. Rc7 {[%emt 0:00:08]} Ke6 {[%emt 0:00:15]} 36. Nf4+ {[%emt 0:00:02]} Kxe5 {[%emt 0:00:09]} 37. Rxd7 {[%emt 0:00:03]} Kf5 {[%emt 0:00:02]} 38. Rf7+ {[%emt 0:00:12]} Kg4 {[%emt 0:00:10]} 39. d7 {[%emt 0:00:03]} Bb6 {[%emt 0:00:02]} 40. Ne6 {[%emt 0:00:07]} g5 {[%emt 0:00:26]} 41. hxg5 {[%emt 0:00:27]} h4 {[%emt 0:00:01]} 42. Rf4+ {[%emt 0:00:03]} Kh5 {[%emt 0:00:01]} 43. Rxh4+ {[%emt 0:00:02]} Kg6 {[%emt 0:00:01]} 44. d8=Q {[%emt 0:00:12]} Bxd8 {[%emt 0:00:10]} 45. Nxd8 {[%emt 0:00:02]} a5 {[%emt 0:00:04]} 46. Rh6+ {[%emt 0:00:08]} Kxg5 {[%emt 0:00:07]} 47. Ra6 {[%emt 0:00:01]} Kf5 {[%emt 0:00:05]} 48. Nb7 {[%emt 0:00:08]} a4 {[%emt 0:00:03]} 49. Kh2 {[%emt 0:00:02]} a3 {[%emt 0:00:12]} 50. Bd6 {[%emt 0:00:03]} Rxf2 {[%emt 0:00:06]} 51. Rxa3 {[%emt 0:00:02]} Rb2 {[%emt 0:00:08]} 52. Nc5 {[%emt 0:00:03]} Rd2 {[%emt 0:00:07]} 53. Rd3 {[%emt 0:00:03]} Rc2 {[%emt 0:00:06]} 54. Kh3 {[%emt 0:00:02]} Kg6 {[%emt 0:00:01]} 55. g3 {[%emt 0:00:04]} Kg5 {[%emt 0:00:21]} 56. Rd5+ {[%emt 0:00:01]} Kf6 {[%emt 0:00:04]} 57. Bf4 {[%emt 0:00:06]} Kg6 {[%emt 0:00:13]} 58. Ne4 {[%emt 0:00:03]} Re2 {[%emt 0:00:05]} 59. Nc5 {[%emt 0:00:03]} Rc2 {[%emt 0:00:03]} 60. Kg4 {[%emt 0:00:01]} Kf7 {[%emt 0:00:04]} 61. Ne4 {[%emt 0:00:03]} Rh2 {[%emt 0:00:06]} 62. Kg5 {[%emt 0:00:06]} Ke7 {[%emt 0:00:04]} 63. g4 {[%emt 0:00:03]} Ke6 {[%emt 0:00:04]} 64. Rd6+ {[%emt 0:00:01]} Ke7 {[%emt 0:00:01]} 65. Ra6 {[%emt 0:00:07]} Kf7 {[%emt 0:00:06]} 66. Kf5 {[%emt 0:00:04]} Ke7 {[%emt 0:00:04]} 67. Bxh2 {[%emt 0:00:04]} 1-0